bitfinex/quotes_ETHUSD_20250420
["timestamp","ask_amount","ask_price","bid_price","bid_amount"]
[1745109517330,6.76426795,1609.2,1609.1,0.784]
[1745109517534,8.46185282,1609.2,1609.1,0.784]
[1745109517843,13.28185281,1609.2,1609.1,0.784]
[1745109518038,6.21504039,1609.0,1608.9,5.174]
[1745109518234,12.73262525,1609.0,1608.9,5.174]
[1745109518409,6.21575625,1608.9,1608.6,8.173]
[1745109518612,6.21645351,1608.7,1608.3,59.9392593]
[1745109518832,11.0364535,1608.7,1608.6,5.173]
[1745109519911,4.81999999,1608.7,1608.6,5.173]
[1745109526011,4.81999999,1608.7,1608.6,14.38958585]
[1745109528043,4.81999999,1608.7,1608.6,8.173]
[1745109529743,4.81999999,1608.9,1608.6,8.173]
[1745109529920,4.81999999,1609.1,1608.9,6.21541145]
[1745109530125,4.81999999,1609.1,1608.9,6.2152101]
[1745109530429,4.81999999,1609.1,1609.0,6.21504039]
[1745109532445,4.81999999,1609.1,1609.0,11.39004039]
[1745109535031,4.81999999,1609.3,1609.1,12.42881606]
[1745109535353,4.81999999,1609.5,1609.3,6.21374075]
[1745109535547,4.81999999,1609.5,1609.3,6.21363782]
[1745109535850,4.81999999,1609.5,1609.3,6.21362931]
[1745109536751,4.81999999,1609.5,1609.4,6.21349571]
[1745109536950,0.7811,1609.6,1609.4,11.38749571]
[1745109538039,0.7811,1609.6,1609.4,17.60072929]
[1745109538353,0.7811,1609.6,1609.4,11.38723358]
[1745109538557,0.7811,1609.6,1609.4,17.60048555]
[1745109538853,0.7811,1609.6,1609.4,17.60051738]
[1745109539068,0.7811,1609.6,1609.4,11.38723358]
[1745109546076,0.7811,1609.6,1609.5,6.21310966]
[1745109546236,5.62369999,1609.7,1609.5,6.21310966]
[1745109549054,4.81999999,1609.8,1609.6,6.21272365]
[1745109549363,4.81999999,1609.8,1609.6,6.21246987]
[1745109549562,4.81999999,1609.8,1609.6,12.42495977]
[1745109549860,4.81999999,1609.8,1609.7,6.2123377]
[1745109550550,4.81999999,1610.0,1609.9,6.21156593]
[1745109550861,4.81999999,1610.0,1609.8,11.38369371]
[1745109551064,4.81999999,1610.0,1609.8,12.20909371]
[1745109552063,4.81999999,1610.0,1609.8,5.172]
[1745109552434,4.81999999,1610.0,1609.8,11.38393601]
[1745109553260,4.81999999,1610.0,1609.8,5.172]
[1745109553563,11.03122629,1610.0,1609.8,5.172]
[1745109554968,4.81999999,1610.0,1609.8,5.172]
[1745109557335,11.03123842,1610.0,1609.8,5.172]
[1745109558567,4.81999999,1610.0,1609.8,5.172]
[1745109562780,11.03123415,1610.0,1609.8,5.172]
[1745109562992,0.7858,1609.9,1609.8,8.172]
[1745109567362,6.99736593,1609.9,1609.8,8.172]
[1745109568991,6.99736593,1609.9,1609.8,5.172]
[1745109569197,10.86447618,1609.9,1609.6,8.171]
[1745109574095,10.86447618,1609.9,1609.6,14.38371278]
[1745109575601,17.07632176,1609.9,1609.6,8.171]
[1745109575896,7.90877741,1609.7,1609.6,5.171]
[1745109576077,7.03530824,1609.5,1609.4,5.17]
[1745109576279,8.73152602,1609.5,1609.4,5.17]
[1745109576470,13.55152601,1609.5,1609.4,5.17]
[1745109576669,13.55152601,1609.5,1609.3,53.228]
[1745109576670,6.21349571,1609.4,1609.3,53.228]
[1745109576893,6.21349571,1609.4,1609.3,58.398]
[1745109577101,9.01189788,1609.4,1609.3,53.228]
[1745109577302,6.2140825,1609.3,1609.2,5.17]
[1745109577498,12.73030027,1609.3,1609.2,5.17]
[1745109578671,12.73030027,1609.3,1609.0,5.171]
[1745109578672,0.8219,1609.1,1609.0,5.171]
[1745109579008,3.22176048,1609.1,1609.0,5.171]
[1745109579203,7.74041142,1609.1,1609.0,5.171]
[1745109579504,0.8219,1609.1,1609.0,5.171]
[1745109580785,0.8219,1609.1,1608.9,3.0]
[1745109580975,0.8219,1609.1,1608.9,8.172]
[1745109582605,5.64189999,1609.1,1608.9,8.172]
[1745109583127,5.64189999,1609.1,1608.9,3.0]
[1745109583417,5.64189999,1609.1,1608.9,8.172]
[1745109584022,5.64189999,1609.1,1608.9,3.0]
[1745109584190,5.64189999,1609.1,1608.9,8.172]
[1745109584907,5.64189999,1609.1,1608.9,3.0]
[1745109585114,5.64189999,1609.1,1608.9,8.172]
[1745109586317,5.64189999,1609.1,1608.9,14.38716741]
[1745109586818,4.81999999,1609.1,1608.9,14.38716741]
[1745109591023,4.81999999,1609.1,1608.9,20.60233247]
[1745109591228,4.81999999,1609.1,1608.9,14.38716506]
[1745109591407,4.81999999,1609.1,1609.0,7.02784039]
[1745109592439,4.81999999,1609.1,1609.0,10.02784039]
[1745109592812,4.81999999,1609.1,1609.0,10.08998414]
[1745109593747,4.81999999,1609.1,1609.0,10.08998415]
[1745109594225,4.81999999,1609.4,1609.2,6.21400164]
[1745109594543,4.81999999,1609.4,1609.3,5.172]
[1745109594918,4.81999999,1609.4,1609.3,11.38588181]
[1745109596916,4.81999999,1609.5,1609.3,12.22290087]
[1745109597260,4.81999999,1609.5,1609.3,11.38564031]
[1745109600154,4.81999999,1609.5,1609.3,5.172]
[1745109600451,11.0331192,1609.5,1609.3,5.172]
[1745109600750,4.81999999,1609.5,1609.3,5.172]
[1745109603224,11.03317688,1609.5,1609.3,5.172]
[1745109603425,6.21412397,1609.3,1609.2,5.172]
[1745109604924,7.00088298,1609.4,1609.2,5.172]
[1745109607153,13.21471222,1609.4,1609.2,5.172]
[1745109607559,6.21388181,1609.3,1609.2,5.172]
[1745109607964,7.00088298,1609.4,1609.2,5.172]
[1745109608254,9.02138237,1609.4,1609.2,5.172]
[1745109608459,6.21388181,1609.3,1609.2,5.172]
[1745109608625,15.23524131,1609.4,1609.2,5.172]
[1745109609027,9.02138237,1609.4,1609.2,5.172]
[1745109610053,15.23515418,1609.4,1609.2,5.172]
[1745109610259,9.02138237,1609.4,1609.2,5.172]
[1745109610561,6.21406377,1609.3,1609.2,5.172]
[1745109611365,7.51617408,1609.3,1609.2,5.172]
[1745109611749,6.21465415,1609.1,1609.0,5.171]
[1745109612148,7.03215617,1609.2,1608.6,60.69418619]
[1745109612149,6.21598087,1608.8,1608.6,53.228]
[1745109612335,6.21598087,1608.8,1608.7,5.171]
[1745109613558,6.21598087,1608.8,1608.7,8.171]
[1745109615164,11.03551902,1608.9,1608.7,8.171]
[1745109616344,17.25129315,1608.9,1608.7,8.171]
[1745109616666,6.21581302,1608.8,1608.7,8.171]
[1745109616866,11.03551902,1608.9,1608.7,8.171]
[1745109617043,6.21581302,1608.8,1608.7,8.171]
[1745109617246,11.03551902,1608.9,1608.7,8.171]
[1745109618039,11.03551902,1608.9,1608.7,8.172]
[1745109619369,11.03551902,1608.9,1608.7,3.0]
[1745109619557,11.03551902,1608.9,1608.7,8.172]
[1745109625574,4.81999999,1608.9,1608.7,8.172]
[1745109626242,11.03545759,1608.9,1608.7,8.172]
[1745109629666,6.21581302,1608.8,1608.7,5.172]
[1745109629973,6.99441302,1608.8,1608.7,5.172]
[1745109630148,6.99441302,1608.8,1608.6,53.228]
[1745109630354,6.21619941,1608.7,1608.6,61.401]
[1745109630863,6.21619941,1608.7,1608.6,58.401]
[1745109635185,6.99441302,1608.8,1608.6,58.401]
[1745109635484,6.21619941,1608.7,1608.6,58.401]
[1745109638475,13.81508511,1608.8,1608.6,5.173]
[1745109639492,6.21619941,1608.7,1608.6,5.173]
[1745109639870,6.21677518,1608.6,1608.5,5.172]
[1745109640175,9.27034372,1608.6,1608.4,5.172]
[1745109640385,11.96437762,1608.5,1608.4,5.172]
[1745109640995,6.21775674,1608.3,1608.1,54.0456]
[1745109641193,6.21814498,1608.2,1608.0,3.7879]
[1745109641373,6.21814498,1608.2,1608.1,8.173]
[1745109641374,4.81999999,1608.2,1608.1,8.173]
[1745109644899,4.81999999,1608.2,1608.1,3.0]
[1745109645063,4.81999999,1608.2,1608.1,8.173]
[1745109645599,11.03813206,1608.2,1608.1,8.173]
[1745109645794,12.21901773,1608.2,1608.1,5.173]
[1745109646371,6.00088566,1608.2,1608.1,5.173]
[1745109647301,4.81999999,1608.2,1608.1,15.21301874]
[1745109650205,4.81999999,1608.4,1608.2,15.43589041]
[1745109650904,4.81999999,1608.4,1608.2,9.21789226]
[1745109652504,4.81999999,1608.4,1608.3,6.99884544]
[1745109652705,4.81999999,1608.4,1608.3,9.99884544]
[1745109655808,12.73543805,1608.6,1608.3,9.99884544]
[1745109658417,12.73543805,1608.6,1608.3,3.7811]
[1745109658583,12.73543805,1608.6,1608.3,9.99881504]
[1745109658783,14.70738507,1608.6,1608.3,9.99881504]
[1745109659296,20.92423174,1608.6,1608.3,3.0]
[1745109659482,14.70738507,1608.6,1608.3,3.0]
[1745109659988,14.70738507,1608.6,1608.3,9.21771653]
[1745109662009,6.51884268,1608.6,1608.3,9.21754516]
[1745109662508,6.51884268,1608.6,1608.3,9.21749031]
[1745109662717,6.51884268,1608.6,1608.4,6.21719777]
[1745109664313,4.81999999,1608.6,1608.5,5.174]
[1745109664490,4.81999999,1608.6,1608.5,11.39097233]
[1745109665016,4.81999999,1608.6,1608.5,5.174]
[1745109667204,4.81999999,1608.6,1608.5,11.39097233]
[1745109667712,6.51884268,1608.8,1608.6,6.98016407]
[1745109668103,4.81999999,1608.8,1608.7,9.21619941]
[1745109668308,4.81999999,1608.8,1608.7,3.0]
[1745109671818,6.51884268,1608.8,1608.7,3.0]
[1745109673523,4.81999999,1608.8,1608.7,3.0]
[1745109676208,14.64410333,1608.8,1608.7,3.0]
[1745109676808,8.42829031,1608.8,1608.7,3.0]
[1745109677028,8.42829031,1608.8,1608.5,5.174]
[1745109677324,7.02287233,1608.5,1608.4,5.172]
[1745109677903,7.02287233,1608.5,1608.2,3.0]
[1745109678098,7.91627768,1608.4,1608.3,5.172]
[1745109678515,12.73627767,1608.4,1608.3,5.172]
[1745109679904,4.81999999,1608.4,1608.3,5.172]
[1745109681035,4.81999999,1608.4,1608.3,11.38974544]
[1745109682230,12.73564344,1608.6,1608.3,11.38974544]
[1745109682433,14.71143665,1608.6,1608.3,11.38974544]
[1745109683230,13.01259396,1608.6,1608.3,11.38974544]
[1745109683629,13.01259396,1608.6,1608.3,5.172]
[1745109683805,7.04798129,1608.5,1608.3,5.172]
[1745109684598,6.21735886,1608.4,1608.3,5.172]
[1745109685002,13.26522367,1608.5,1608.3,5.172]
[1745109685202,9.05408298,1608.5,1608.3,5.172]
[1745109686161,2.83700169,1608.5,1608.3,5.172]
[1745109686333,0.8309,1608.5,1608.3,5.172]
[1745109687931,4.81999999,1608.6,1608.3,5.172]
[1745109688237,4.81999999,1608.6,1608.3,11.38950126]
[1745109688624,4.81999999,1608.6,1608.3,17.60702643]
[1745109688820,4.81999999,1608.6,1608.4,6.21733106]
[1745109689004,4.81999999,1608.6,1608.4,6.21720764]
[1745109692636,6.21701116,1608.5,1608.3,5.172]
[1745109692836,6.99741116,1608.5,1608.3,5.172]
[1745109693532,13.21472765,1608.5,1608.3,5.172]
[1745109693942,6.21735886,1608.4,1608.3,8.172]
[1745109694840,6.21735886,1608.4,1608.3,5.172]
[1745109695045,7.53883586,1608.4,1608.3,5.172]
[1745109695416,6.21804991,1608.3,1607.9,53.273]
[1745109695621,6.2186991,1608.1,1608.0,5.173]
[1745109696218,6.2186991,1608.1,1607.9,53.273]
[1745109696422,6.21890547,1608.0,1607.9,61.446]
[1745109699858,11.03890546,1608.0,1607.9,61.446]
[1745109703146,4.81999999,1608.0,1607.9,61.446]
[1745109706333,4.81999999,1608.0,1607.9,8.173]
[1745109708750,4.81999999,1608.0,1607.9,9.8069]
[1745109708922,4.81999999,1608.0,1607.9,8.9896]
[1745109709856,4.81999999,1608.0,1607.9,15.20889224]
[1745109710254,4.81999999,1608.0,1607.9,8.9896]
[1745109711527,11.03837454,1608.2,1608.0,3.0]
[1745109711727,12.76401101,1608.2,1608.0,3.0]
[1745109713274,11.03837454,1608.2,1608.0,3.0]
[1745109714176,4.81999999,1608.2,1608.0,3.0]
[1745109714363,4.81999999,1608.2,1608.0,9.21885395]
[1745109715168,4.81999999,1608.2,1608.0,3.0]
[1745109717078,11.03815237,1608.2,1608.0,3.0]
[1745109717670,6.21815238,1608.2,1608.0,3.0]
[1745109718072,12.43663392,1608.2,1608.0,3.0]
[1745109718261,7.00755238,1608.2,1608.0,3.0]
[1745109719043,0.7894,1608.2,1608.0,3.0]
[1745109719243,7.00768541,1608.2,1608.0,3.0]
[1745109720673,13.22612945,1608.2,1608.0,3.0]
[1745109720851,6.21851874,1608.1,1608.0,3.0]
[1745109725978,13.22609695,1608.2,1608.0,3.0]
[1745109726557,7.00768541,1608.2,1608.0,3.0]
[1745109727786,6.21828541,1608.2,1608.0,3.0]
[1745109727989,11.03793411,1608.3,1608.0,3.8945856]
[1745109728146,11.03793411,1608.3,1608.0,3.8324]
[1745109728562,6.2181374,1608.2,1608.0,3.8324]
[1745109729482,17.25603674,1608.3,1608.0,3.8324]
[1745109729852,6.21817503,1608.2,1608.0,3.8324]
[1745109731489,6.21817503,1608.2,1608.1,5.172]
[1745109731987,10.42522555,1608.2,1608.1,5.172]
[1745109732353,6.21916914,1608.0,1607.9,3.0]
[1745109733477,6.21916914,1608.0,1607.9,8.172]
[1745109734289,6.21851874,1608.1,1607.9,8.172]
[1745109734588,12.4373122,1608.1,1607.9,8.172]
[1745109734789,4.81999999,1608.3,1607.9,8.9963]
[1745109734954,11.81892549,1608.5,1608.1,13.26086733]
[1745109735158,11.81892549,1608.5,1608.2,9.21810923]
[1745109735379,11.03712549,1608.5,1608.2,9.21810923]
[1745109736693,11.03712549,1608.5,1608.3,5.172]
[1745109738092,4.81999999,1608.5,1608.3,5.9963]
[1745109738393,4.81999999,1608.5,1608.3,12.2137398]
[1745109738713,4.81999999,1608.5,1608.4,3.0]
[1745109743399,11.03715343,1608.5,1608.3,5.172]
[1745109743701,6.21735886,1608.4,1608.3,8.172]
[1745109744092,6.97011197,1608.3,1608.2,5.172]
[1745109744396,8.66975158,1608.3,1608.2,5.172]
[1745109744598,6.2184371,1608.2,1608.0,3.0]
[1745109744798,6.21880149,1608.1,1608.0,5.172]
[1745109744977,6.97080149,1608.1,1608.0,5.172]
[1745109747799,11.84391327,1608.2,1608.0,5.172]
[1745109750090,11.03831327,1608.2,1608.0,5.172]
[1745109750779,17.2567664,1608.2,1608.0,5.172]
[1745109751284,6.21851874,1608.1,1608.0,5.172]
[1745109751910,17.25682632,1608.2,1608.0,5.172]
[1745109752211,6.21851874,1608.1,1608.0,5.172]
[1745109755510,8.77220194,1608.1,1608.0,5.172]
[1745109755681,13.59220193,1608.1,1608.0,5.172]
[1745109756307,13.59220193,1608.1,1607.8,3.06219031]
[1745109756308,19.81104557,1608.1,1607.9,5.172]
[1745109756509,11.86651873,1608.1,1607.9,5.172]
[1745109756810,11.03851873,1608.1,1607.9,5.172]
[1745109757511,4.81999999,1608.1,1607.9,5.9519]
[1745109757682,4.81999999,1608.1,1607.9,6.01409166]
[1745109758083,4.81999999,1608.1,1607.9,12.1710555]
[1745109758386,4.81999999,1608.1,1608.0,9.21890547]
[1745109758587,4.81999999,1608.1,1608.0,3.0]
[1745109761517,6.2181364,1608.2,1608.0,3.0]
[1745109763118,11.03782031,1608.3,1608.0,3.0]
[1745109763490,17.25587159,1608.3,1608.0,3.0]
[1745109763689,11.03782031,1608.3,1608.0,3.0]
[1745109764414,11.03782031,1608.3,1608.0,3.06218209]
[1745109764608,11.03782031,1608.3,1608.0,3.0]
[1745109764788,11.03782031,1608.3,1608.0,3.06218209]
[1745109765414,17.25584023,1608.3,1608.0,3.06218209]
[1745109765618,17.25584023,1608.3,1608.0,3.0]
[1745109765919,4.81999999,1608.3,1608.0,9.21874382]
[1745109766721,4.81999999,1608.3,1608.0,15.43739576]
[1745109766921,4.81999999,1608.3,1608.0,9.21865194]
[1745109767106,4.81999999,1608.3,1608.0,3.0]
[1745109767107,11.03784023,1608.3,1608.0,3.0]
[1745109767819,4.81999999,1608.3,1608.0,9.280971]
[1745109768019,4.81999999,1608.3,1608.2,3.826]
[1745109768210,13.55394675,1608.6,1608.2,10.04413207]
[1745109768415,11.8547072,1608.6,1608.3,5.172]
[1745109768754,11.0368072,1608.6,1608.3,5.172]
[1745109769113,11.0368072,1608.6,1608.3,11.45188773]
[1745109770221,4.81999999,1608.6,1608.4,3.0]
[1745109770424,4.81999999,1608.6,1608.5,0.826]
[1745109773027,4.81999999,1608.6,1608.4,3.82096668]
[1745109774629,4.81999999,1608.6,1608.4,10.03825593]
[1745109774827,4.81999999,1608.6,1608.4,3.82096668]
[1745109775632,4.81999999,1608.6,1608.4,10.03827694]
[1745109779045,11.03624085,1608.7,1608.4,10.03827694]
[1745109782307,11.03624085,1608.7,1608.4,9.97611026]
[1745109782635,11.03624085,1608.7,1608.4,10.03827694]
[1745109783757,11.03624085,1608.7,1608.4,3.7588]
[1745109783937,6.21676159,1608.6,1608.4,3.0]
[1745109784146,0.7619,1608.5,1608.2,3.0]
[1745109784308,8.78016038,1608.6,1608.4,3.0]
[1745109785138,8.78016038,1608.6,1608.4,8.171]
[1745109787342,2.56339024,1608.6,1608.4,8.171]
[1745109787541,8.78001453,1608.6,1608.4,8.171]
[1745109788940,6.21697233,1608.5,1608.4,8.171]
[1745109789146,7.71667102,1608.5,1608.4,8.171]
[1745109789547,7.71667102,1608.5,1608.4,5.171]
[1745109789745,7.0185383,1608.4,1608.3,5.171]
[1745109790715,11.83853829,1608.4,1608.3,5.171]
[1745109791145,7.32015298,1608.4,1608.1,3.0]
[1745109791332,6.21798189,1608.3,1608.1,5.17]
[1745109791942,12.43605537,1608.3,1608.1,5.17]
[1745109792143,6.21885805,1608.1,1607.8,0.7829]
[1745109792348,6.21925919,1608.0,1607.8,5.17]
[1745109793756,11.90986044,1608.1,1607.8,5.17]
[1745109793928,11.03872934,1608.1,1607.8,5.17]
[1745109794250,11.03872934,1608.1,1607.8,11.38967675]
[1745109794651,11.03872934,1608.1,1607.8,5.17]
[1745109796745,11.03872934,1608.1,1607.8,11.38964195]
[1745109797452,17.25758557,1608.1,1607.8,5.17]
[1745109797949,11.03872934,1608.1,1607.8,5.17]
[1745109798149,11.03872934,1608.1,1607.8,11.38965456]
[1745109798449,11.03872934,1608.1,1607.8,12.15025456]
[1745109798955,17.25752139,1608.1,1607.8,5.9306]
[1745109799130,17.25751417,1608.1,1607.8,5.17]
[1745109799323,11.03872934,1608.1,1607.8,5.17]
[1745109799857,6.2189665,1608.0,1607.8,5.17]
[1745109800251,11.03872934,1608.1,1607.8,5.17]
[1745109800252,17.25757483,1608.1,1607.8,5.17]
[1745109801647,11.03872934,1608.1,1607.8,5.17]
[1745109801816,17.2575492,1608.1,1607.8,5.17]
[1745109802238,11.03872934,1608.1,1607.8,11.3896722]
[1745109802448,4.81999999,1608.1,1607.8,17.60909597]
[1745109802750,11.03859301,1608.1,1607.8,5.17]
[1745109804455,4.81999999,1608.1,1607.8,5.17]
[1745109804638,6.21929224,1607.9,1607.8,5.17]
[1745109804832,0.7805,1608.0,1607.8,5.17]
[1745109805356,11.81923725,1608.1,1607.8,5.17]
[1745109806136,11.81923725,1608.1,1607.8,11.38962567]
[1745109806661,11.81923725,1608.1,1607.8,12.14822567]
[1745109807864,18.03805879,1608.1,1607.8,5.9286]
[1745109808156,11.81923725,1608.1,1607.8,12.14826198]
[1745109809979,0.769,1608.0,1607.8,3.0]
[1745109810271,6.9881612,1608.0,1607.8,8.172]
[1745109810467,13.20735339,1608.0,1607.8,8.172]
[1745109814970,6.21929224,1607.9,1607.8,8.172]
[1745109815266,11.03929223,1607.9,1607.8,8.172]
[1745109815569,4.81999999,1607.9,1607.8,8.172]
[1745109817365,4.81999999,1607.9,1607.8,14.39167906]
[1745109817667,4.81999999,1607.9,1607.8,15.19857906]
[1745109819067,4.81999999,1607.9,1607.8,8.172]
[1745109819564,11.03929223,1607.9,1607.8,8.172]
[1745109819771,4.81999999,1607.9,1607.8,8.172]
[1745109820071,11.82814367,1608.0,1607.8,8.172]
[1745109824074,18.0473357,1608.0,1607.8,8.172]
[1745109824369,11.82814367,1608.0,1607.8,8.172]
[1745109824765,13.6328313,1608.0,1607.8,8.172]
[1745109827076,19.85206033,1608.0,1607.8,8.172]
[1745109828272,13.6328313,1608.0,1607.8,8.172]
[1745109828657,19.85204945,1608.0,1607.8,8.172]
[1745109830477,6.21967906,1607.8,1607.5,0.8069]
[1745109830647,6.22053286,1607.6,1607.5,5.171]
[1745109830846,6.22053286,1607.6,1607.5,8.171]
[1745109831068,6.22053286,1607.6,1607.5,5.171]
[1745109831871,11.04053285,1607.6,1607.5,5.171]
[1745109832066,6.22083981,1607.5,1607.4,3.0]
[1745109832269,13.54506253,1607.5,1607.4,3.0]
[1745109833283,7.32422272,1607.5,1607.4,3.0]
[1745109834954,4.81999999,1607.5,1607.4,9.97952682]
[1745109837684,4.81999999,1607.8,1607.5,6.22061063]
[1745109838052,4.81999999,1607.8,1607.4,9.97952682]
[1745109838259,11.03985636,1607.8,1607.4,9.97927623]
[1745109838785,11.03985636,1607.8,1607.5,6.22069462]
[1745109839682,11.03985636,1607.8,1607.5,6.22081054]
[1745109839885,11.03985636,1607.8,1607.4,9.97927623]
[1745109840186,6.22009941,1607.7,1607.4,9.97927623]
[1745109840486,17.25980001,1607.8,1607.4,9.97927623]
[1745109840658,11.03985636,1607.8,1607.4,16.20027207]
[1745109840859,11.03985636,1607.8,1607.5,6.22066713]
[1745109841984,6.22007588,1607.7,1607.4,9.97927507]
[1745109842383,6.22007588,1607.7,1607.5,5.172]
[1745109844189,17.25980723,1607.8,1607.5,5.172]
[1745109845084,11.03985636,1607.8,1607.5,5.172]
[1745109845387,17.25981748,1607.8,1607.5,5.172]
[1745109845688,19.06621923,1607.8,1607.5,5.172]
[1745109845887,6.220075,1607.7,1607.5,5.172]
[1745109846192,6.22045284,1607.6,1607.5,5.172]
[1745109847295,6.22045284,1607.6,1607.4,8.172]
[1745109847583,12.4412192,1607.6,1607.4,8.172]
[1745109847802,7.54220476,1607.6,1607.4,8.172]
[1745109849393,18.58296474,1607.6,1607.4,8.172]
[1745109850687,12.36220475,1607.6,1607.4,8.172]
[1745109851190,0.8243,1607.5,1607.4,8.172]
[1745109852289,0.8243,1607.5,1607.4,3.0]
[1745109852493,6.22157101,1607.4,1607.3,5.172]
[1745109853894,6.22200099,1607.2,1607.1,0.1]
[1745109854064,7.04610982,1607.3,1607.1,0.1]
[1745109854263,13.26799968,1607.3,1607.1,0.1]
[1745109854674,13.26806895,1607.3,1607.1,0.1]
[1745109854988,8.74134427,1607.3,1607.1,0.1]
[1745109855290,9.90569888,1607.4,1607.1,0.8789]
[1745109855493,16.12725097,1607.4,1607.1,0.8789]
[1745109855664,6.22162286,1607.3,1607.1,0.1]
[1745109856687,7.02872286,1607.3,1607.1,0.1]
[1745109857702,0.8071,1607.3,1607.1,0.1]
[1745109858386,5.62709999,1607.3,1607.1,0.1]
[1745109858694,4.81999999,1607.3,1607.1,0.1]
[1745109866943,4.81999999,1607.3,1607.1,6.32238455]
[1745109867493,4.81999999,1607.3,1607.1,6.32215386]
[1745109867803,4.81999999,1607.3,1607.1,6.32215277]
[1745109869632,4.81999999,1607.3,1607.1,0.1]
[1745109869934,4.81999999,1607.4,1607.1,6.32228805]
[1745109870130,11.04125716,1607.4,1607.1,6.32228805]
[1745109871427,11.04125716,1607.4,1607.1,6.32234291]
[1745109871729,11.04125716,1607.4,1607.1,0.1]
[1745109871894,12.39623437,1607.4,1607.1,0.1]
[1745109872395,12.39623437,1607.4,1607.1,6.3222984]
[1745109873119,18.6177462,1607.4,1607.1,0.1]
[1745109873326,12.39623437,1607.4,1607.1,0.1]
[1745109874829,18.61778035,1607.4,1607.1,0.1]
[1745109875023,8.08339279,1607.3,1607.1,0.1]
[1745109875722,6.22200099,1607.2,1607.1,0.1]
[1745109875893,16.76706357,1607.3,1607.1,0.1]
[1745109876096,10.54510776,1607.3,1607.1,0.1]
[1745109878200,9.78480776,1607.3,1607.1,0.1]
[1745109879935,0.97848078,1607.2,1607.1,0.1]
[1745109880303,0.97848078,1607.2,1607.1,5.273]
[1745109880846,0.97848078,1607.2,1607.1,0.1]
[1745109881140,0.97848078,1607.2,1607.1,5.273]
[1745109884210,7.92302972,1607.3,1607.1,5.273]
[1745109884636,12.74302971,1607.3,1607.1,5.273]
[1745109885409,6.52141496,1607.3,1607.1,5.273]
[1745109888923,6.52141496,1607.3,1607.1,11.49537529]
[1745109889123,6.52141496,1607.3,1607.1,5.273]
[1745109890647,12.74308521,1607.3,1607.1,5.273]
[1745109890942,6.52141496,1607.3,1607.1,11.49517327]
[1745109897051,6.52141496,1607.3,1607.1,5.273]
[1745109897254,6.52141496,1607.3,1607.1,11.49535823]
[1745109900319,6.52141496,1607.3,1607.1,5.273]
[1745109901365,6.52141496,1607.3,1607.1,11.49537177]
[1745109901654,6.52141496,1607.3,1607.1,5.273]
[1745109905951,4.81999999,1607.3,1607.1,5.273]
[1745109906256,4.81999999,1607.3,1607.2,9.97290099]
[1745109908061,4.81999999,1607.5,1607.2,9.97290099]
[1745109908768,11.04084051,1607.5,1607.2,9.97290099]
[1745109909059,11.04084051,1607.5,1607.2,10.44970847]
[1745109909258,11.04084051,1607.5,1607.2,3.0]
[1745109909259,7.92289653,1607.4,1607.2,3.0]
[1745109909464,7.01390353,1607.3,1607.2,5.172]
[1745109913966,12.61250352,1607.3,1607.2,5.172]
[1745109914267,7.00060099,1607.2,1607.1,0.1]
[1745109914431,8.70201596,1607.2,1607.1,0.1]
[1745109915377,2.48001497,1607.2,1607.1,0.1]
[1745109915742,1.70141497,1607.2,1607.1,0.1]
[1745109916158,4.81999999,1607.3,1607.1,6.32230577]
[1745109916548,4.81999999,1607.3,1607.1,6.32215329]
[1745109917267,4.81999999,1607.3,1607.1,12.54436213]
[1745109917466,4.81999999,1607.3,1607.2,6.22200099]
[1745109917667,4.81999999,1607.3,1607.1,6.32215329]
[1745109918966,4.81999999,1607.3,1607.1,12.54428983]
[1745109919870,6.52141496,1607.4,1607.1,12.54428983]
[1745109921068,6.52141496,1607.4,1607.2,6.2219468]
[1745109921376,6.22062526,1607.6,1607.3,6.2215026]
[1745109921377,6.52141496,1607.6,1607.3,6.2215026]
[1745109921672,6.52141496,1607.6,1607.4,12.16459198]
[1745109921673,4.81999999,1607.6,1607.4,12.16459198]
[1745109923377,4.81999999,1607.6,1607.4,12.16466711]
[1745109927369,4.81999999,1607.6,1607.4,11.39316711]
[1745109927668,8.72515478,1607.5,1607.4,8.172]
[1745109927871,8.72515478,1607.5,1607.2,6.69424446]
[1745109927872,14.94628882,1607.5,1607.1,6.32221541]
[1745109928042,14.94628882,1607.5,1607.3,5.171]
[1745109928241,6.22122682,1607.4,1607.3,8.171]
[1745109928678,8.72515478,1607.5,1607.3,8.171]
[1745109928880,10.83720087,1607.5,1607.3,8.171]
[1745109929062,4.61636106,1607.5,1607.3,8.171]
[1745109929266,2.50431497,1607.5,1607.3,8.171]
[1745109929882,8.72518482,1607.5,1607.3,3.0]
[1745109930058,14.94637131,1607.5,1607.3,8.171]
[1745109930263,8.72518482,1607.5,1607.3,8.171]
[1745109930574,14.94631487,1607.5,1607.3,8.171]
[1745109930775,10.83727754,1607.5,1607.3,8.171]
[1745109931553,15.65727753,1607.5,1607.3,8.171]
[1745109931884,15.65727753,1607.5,1607.4,0.2430659]
[1745109932185,15.65727753,1607.5,1607.3,8.171]
[1745109932391,15.65727753,1607.5,1607.4,0.24314899]
[1745109932682,15.65727753,1607.5,1607.3,8.171]
[1745109932881,15.65727753,1607.5,1607.4,0.24314899]
[1745109933086,15.65727753,1607.5,1607.3,8.171]
[1745109933274,15.65727753,1607.5,1607.4,0.24314899]
[1745109933583,15.65727753,1607.5,1607.3,8.171]
[1745109933782,15.65727753,1607.5,1607.4,0.24320907]
[1745109934089,15.65727753,1607.5,1607.3,8.171]
[1745109934384,15.65727753,1607.5,1607.4,0.24320907]
[1745109934791,15.65727753,1607.5,1607.3,8.171]
[1745109935103,15.65727753,1607.5,1607.4,0.24320907]
[1745109935303,15.65727753,1607.5,1607.3,8.171]
[1745109935458,15.65727753,1607.5,1607.4,0.24320907]
[1745109935656,15.65727753,1607.5,1607.3,8.171]
[1745109936559,1.56572775,1607.4,1607.3,5.171]
[1745109937086,14.85437753,1607.5,1607.3,5.171]
[1745109941999,14.85437753,1607.5,1607.2,10.01499903]